fUSD/lending_fUSD_20260622
["ID","MTS","AMOUNT","RATE_DAILY","PERIOD"]
[426050278,1782131517000,-500.0,0.00028219,2]
[426050279,1782131517000,-919.77,0.00028219,2]
[426050281,1782131517000,-500.0,0.00028219,2]
[426050258,1782131517000,-176.28883585,0.00028219,2]
[426050283,1782131517000,-500.0,0.00028219,2]
[426050268,1782131517000,-8639.58,0.00028219,2]
[426050257,1782131517000,-338.40562326,0.00028219,2]
[426050248,1782131517000,-500.0,0.00028219,2]
[426050259,1782131517000,-649.5,0.00028219,2]
[426050284,1782131517000,-500.0,0.00028219,2]
[426050243,1782131517000,-6597.51,0.00028219,2]
[426050241,1782131517000,-500.0,0.00028219,2]
[426050242,1782131517000,-389.86,0.00028219,2]
[426050245,1782131517000,-500.0,0.00028219,2]
[426050244,1782131517000,-5976.83,0.00028219,2]
[426050247,1782131517000,-7004.08,0.00028219,2]
[426050253,1782131517000,-500.0,0.00028219,2]
[426050256,1782131517000,-500.0,0.00028219,2]
[426050251,1782131517000,-611.57,0.00028219,2]
[426050246,1782131517000,-500.0,0.00028219,2]
[426050249,1782131517000,-500.0,0.00028219,2]
[426050250,1782131517000,-500.0,0.00028219,2]
[426050254,1782131517000,-658.07,0.00028219,2]
[426050255,1782131517000,-909.43,0.00028219,2]
[426050260,1782131517000,-511.8,0.00028219,2]
[426050261,1782131517000,-500.0,0.00028219,2]
[426050264,1782131517000,-501.94979981,0.00028219,2]
[426050252,1782131517000,-9672.86,0.00028219,2]
[426050282,1782131517000,-500.0,0.00028219,2]
[426050274,1782131517000,-500.0,0.00028219,2]
[426050287,1782131517000,-500.0,0.00028219,2]
[426050306,1782131517000,-729.92,0.00028219,2]
[426050309,1782131517000,-500.0,0.00028219,2]
[426050311,1782131517000,-500.0,0.00028219,2]
[426050310,1782131517000,-4175.97,0.00028219,2]
[426050313,1782131517000,-500.0,0.00028219,2]
[426050312,1782131517000,-513.61,0.00028219,2]
[426050314,1782131517000,-500.0,0.00028219,2]
[426050315,1782131517000,-500.0,0.00028219,2]
[426050316,1782131517000,-500.0,0.00028219,2]
[426050319,1782131517000,-550.17174436,0.00028219,2]
[426050317,1782131517000,-895.47,0.00028219,2]
[426050320,1782131517000,-500.0,0.00028219,2]
[426050322,1782131517000,-500.0,0.00028219,2]
[426050321,1782131517000,-500.0,0.00028219,2]
[426050323,1782131517000,-781.2,0.00028219,2]
[426050324,1782131517000,-554.0,0.00028219,2]
[426050325,1782131517000,-500.0,0.00028219,2]
[426050326,1782131517000,-500.0,0.00028219,2]
[426050280,1782131517000,-500.0,0.00028219,2]
[426050307,1782131517000,-2905.9,0.00028219,2]
[426050308,1782131517000,-2044.4,0.00028219,2]
[426050318,1782131517000,-500.0,0.00028219,2]
[426050303,1782131517000,-500.0,0.00028219,2]
[426050288,1782131517000,-5625.93,0.00028219,2]
[426050305,1782131517000,-500.0,0.00028219,2]
[426050286,1782131517000,-500.0,0.00028219,2]
[426050285,1782131517000,-500.0,0.00028219,2]
[426050289,1782131517000,-500.0,0.00028219,2]
[426050291,1782131517000,-603.24848964,0.00028219,2]
[426050294,1782131517000,-500.0,0.00028219,2]
[426050327,1782131517000,-1281.85,0.00028219,2]
[426050299,1782131517000,-500.0,0.00028219,2]
[426050290,1782131517000,-500.0,0.00028219,2]
[426050297,1782131517000,-500.0,0.00028219,2]
[426050295,1782131517000,-844.33,0.00028219,2]
[426050298,1782131517000,-500.0,0.00028219,2]
[426050296,1782131517000,-500.0,0.00028219,2]
[426050293,1782131517000,-775.18,0.00028219,2]
[426050301,1782131517000,-1087.5,0.00028219,2]
[426050300,1782131517000,-500.0,0.00028219,2]
[426050292,1782131517000,-500.0,0.00028219,2]
[426050302,1782131517000,-912.76,0.00028219,2]
[426050304,1782131517000,-632.608662,0.00028219,2]
[426050367,1782131518000,-544.3,0.00028267,2]
[426050363,1782131518000,-644.33,0.00028227,7]
[426050366,1782131518000,-351.9,0.00028263,2]
[426050362,1782131518000,-500.0,0.0002822,2]
[426050365,1782131518000,-457.02738553,0.00028248,2]
[426050360,1782131518000,-500.0,0.00028219,2]
[426050361,1782131518000,-152.6191,0.00028219,2]
[426050359,1782131518000,-500.0,0.00028219,2]
[426050377,1782131518000,-644.79446245,0.00028377,2]
[426050358,1782131518000,-659.85,0.00028219,2]
[426050364,1782131518000,-642.64,0.00028233,7]
[426050368,1782131518000,-353.16,0.00028268,2]
[426050379,1782131518000,-301.14337869,0.0002838,2]
[426050369,1782131518000,-350.0,0.00028294,2]
[426050370,1782131518000,-351.9,0.00028324,7]
[426050372,1782131518000,-353.16,0.00028329,7]
[426050373,1782131518000,-285.84,0.00028344,7]
[426050371,1782131518000,-501.0,0.00028325,3]
[426050378,1782131518000,-747.80937859,0.00028377,2]
[426050374,1782131518000,-1285.07,0.00028344,7]
[426050375,1782131518000,-928.72,0.00028348,7]
[426050390,1782131518000,-452.624664,0.000284,7]
[426050382,1782131518000,-25000.0,0.00028397,7]
[426050383,1782131518000,-11579.09,0.000284,2]
[426050356,1782131518000,-587.25,0.00028219,2]
[426050376,1782131518000,-1066.35,0.00028348,7]
[426050357,1782131518000,-2249.47,0.00028219,2]
[426050336,1782131518000,-500.0,0.00028219,2]
[426050351,1782131518000,-500.0,0.00028219,2]
[426050328,1782131518000,-500.0,0.00028219,2]
[426050331,1782131518000,-777.53,0.00028219,2]
[426050329,1782131518000,-500.0,0.00028219,2]
[426050330,1782131518000,-649.01842065,0.00028219,2]
[426050332,1782131518000,-537.51,0.00028219,2]
[426050333,1782131518000,-214.43,0.00028219,2]
[426050334,1782131518000,-805.85,0.00028219,2]
[426050387,1782131518000,-151.0,0.000284,7]
[426050335,1782131518000,-500.0,0.00028219,2]
[426050339,1782131518000,-500.0,0.00028219,2]
[426050338,1782131518000,-879.74,0.00028219,2]
[426050337,1782131518000,-500.0,0.00028219,2]
[426050352,1782131518000,-595.64,0.00028219,2]
[426050340,1782131518000,-500.0,0.00028219,2]
[426050342,1782131518000,-948.85,0.00028219,2]
[426050343,1782131518000,-500.0,0.00028219,2]
[426050346,1782131518000,-500.0,0.00028219,2]
[426050345,1782131518000,-500.0,0.00028219,2]
[426050347,1782131518000,-535.16,0.00028219,2]
[426050344,1782131518000,-500.0,0.00028219,2]
[426050355,1782131518000,-500.0,0.00028219,2]
[426050349,1782131518000,-984.2,0.00028219,2]
[426050354,1782131518000,-500.0,0.00028219,2]
[426050348,1782131518000,-500.0,0.00028219,2]
[426050350,1782131518000,-500.0,0.00028219,2]
[426050353,1782131518000,-500.0,0.00028219,2]
[426050341,1782131518000,-1013.21,0.00028219,2]
[426050386,1782131518000,-452.624664,0.000284,7]
[426050380,1782131518000,-351.9,0.00028384,30]
[426050385,1782131518000,-57188.62657349,0.000284,2]
[426050416,1782131518000,-814.71045009,0.00028448,2]
[426050418,1782131518000,-711.09912825,0.00028448,2]
[426050421,1782131518000,-614.42102002,0.00028448,2]
[426050420,1782131518000,-610.58258781,0.00028448,2]
[426050422,1782131518000,-425.68291828,0.00028448,2]
[426050419,1782131518000,-514.99277453,0.00028448,2]
[426050423,1782131518000,-689.81497833,0.00028448,2]
[426050425,1782131518000,-409.02126746,0.00028448,2]
[426050432,1782131518000,-741.63501741,0.00028448,2]
[426050436,1782131518000,-458.87827511,0.00028448,2]
[426050427,1782131518000,-694.77468149,0.00028448,2]
[426050431,1782131518000,-633.83434604,0.00028448,2]
[426050417,1782131518000,-725.48734814,0.00028448,2]
[426050430,1782131518000,-340.56843656,0.00028448,2]
[426050435,1782131518000,-423.04271954,0.00028448,2]
[426050434,1782131518000,-341.0260912,0.00028448,2]
[426050428,1782131518000,-330.79116042,0.00028448,2]
[426050429,1782131518000,-691.2933712,0.00028448,2]
[426050433,1782131518000,-558.31262175,0.00028448,2]
[426050438,1782131518000,-422.67331356,0.00028448,2]
[426050437,1782131518000,-737.26772674,0.00028448,2]
[426050443,1782131518000,-353.16,0.00028449,2]
[426050441,1782131518000,-424.83765198,0.00028448,2]
[426050440,1782131518000,-684.83071288,0.00028448,2]
[426050439,1782131518000,-773.73098735,0.00028448,2]
[426050381,1782131518000,-353.16,0.00028389,30]
[426050426,1782131518000,-675.46398136,0.00028448,2]
[426050413,1782131518000,-790.76386184,0.00028448,2]
[426050442,1782131518000,-322.30135977,0.00028448,2]
[426050424,1782131518000,-328.30005801,0.00028448,2]
[426050389,1782131518000,-151.0,0.000284,7]
[426050384,1782131518000,-7281.84,0.000284,2]
[426050388,1782131518000,-452.624664,0.000284,7]
[426050393,1782131518000,-502.838161,0.000284,7]
[426050391,1782131518000,-452.624667,0.000284,7]
[426050397,1782131518000,-151.0,0.000284,7]
[426050394,1782131518000,-502.838161,0.000284,7]
[426050415,1782131518000,-534.3592339,0.00028448,2]
[426050396,1782131518000,-502.838161,0.000284,7]
[426050399,1782131518000,-25000.0,0.00028405,7]
[426050392,1782131518000,-502.838161,0.000284,7]
[426050401,1782131518000,-25000.0,0.00028405,7]
[426050402,1782131518000,-176.16214999,0.00028408,2]
[426050395,1782131518000,-1111.561301,0.000284,7]
[426050400,1782131518000,-25000.0,0.00028405,7]
[426050398,1782131518000,-1111.561301,0.000284,7]
[426050414,1782131518000,-794.7239778,0.00028448,2]
[426050409,1782131518000,-630.98989214,0.00028448,2]
[426050410,1782131518000,-680.01155672,0.00028448,2]
[426050411,1782131518000,-600.55377134,0.00028448,2]
[426050412,1782131518000,-666.56230675,0.00028448,2]
[426050408,1782131518000,-664.80716865,0.00028448,2]
[426050405,1782131518000,-678.17612018,0.00028448,2]
[426050407,1782131518000,-642.1425692,0.00028448,2]
[426050404,1782131518000,-644.33,0.00028447,2]
[426050403,1782131518000,-351.9,0.00028445,2]
[426050406,1782131518000,-676.9448395,0.00028448,2]
[426050478,1782131519000,-1724.88,0.00028493,2]
[426050483,1782131519000,-1276.25,0.00028493,2]
[426050491,1782131519000,-500.0,0.00028493,2]
[426050481,1782131519000,-500.0,0.00028493,2]
[426050480,1782131519000,-500.0,0.00028493,2]
[426050479,1782131519000,-539.78,0.00028493,2]
[426050476,1782131519000,-500.0,0.00028493,2]
[426050477,1782131519000,-500.0,0.00028493,2]
[426050474,1782131519000,-947.67,0.00028493,2]
[426050475,1782131519000,-500.0,0.00028493,2]
[426050472,1782131519000,-500.0,0.00028493,2]
[426050493,1782131519000,-2673.46,0.00028493,2]
[426050499,1782131519000,-695.0,0.00028493,2]
[426050486,1782131519000,-500.0,0.00028493,2]
[426050482,1782131519000,-500.0,0.00028493,2]
[426050485,1782131519000,-500.0,0.00028493,2]
[426050487,1782131519000,-500.0,0.00028493,2]
[426050488,1782131519000,-500.0,0.00028493,2]
[426050489,1782131519000,-500.0,0.00028493,2]
[426050490,1782131519000,-666.68,0.00028493,2]
[426050494,1782131519000,-573.76,0.00028493,2]
[426050495,1782131519000,-500.0,0.00028493,2]
[426050496,1782131519000,-610.35,0.00028493,2]
[426050500,1782131519000,-500.0,0.00028493,2]
[426050471,1782131519000,-633.7,0.00028493,2]
[426050484,1782131519000,-500.0,0.00028493,2]
[426050473,1782131519000,-513.94,0.00028493,2]
[426050450,1782131519000,-454073.66702923,0.00028493,2]
[426050467,1782131519000,-680.9,0.00028493,2]
[426050502,1782131519000,-500.0,0.00028493,2]
[426050445,1782131519000,-561.83246015,0.00028492,2]
[426050444,1782131519000,-642.64,0.00028452,2]
[426050446,1782131519000,-561.83246015,0.00028492,2]
[426050447,1782131519000,-561.83246015,0.00028492,2]
[426050448,1782131519000,-561.83246014,0.00028492,2]
[426050451,1782131519000,-454073.66702923,0.00028493,2]
[426050453,1782131519000,-454073.66702923,0.00028493,2]
[426050455,1782131519000,-500.0,0.00028493,2]
[426050458,1782131519000,-500.0,0.00028493,2]
[426050452,1782131519000,-454073.66702923,0.00028493,2]
[426050454,1782131519000,-530.352991,0.00028493,2]
[426050456,1782131519000,-500.0,0.00028493,2]
[426050457,1782131519000,-500.0,0.00028493,2]
[426050449,1782131519000,-561.83246014,0.00028492,2]
[426050460,1782131519000,-500.0,0.00028493,2]
[426050462,1782131519000,-585.84,0.00028493,2]
[426050461,1782131519000,-819.26,0.00028493,2]
[426050459,1782131519000,-507.47247806,0.00028493,2]
[426050463,1782131519000,-500.0,0.00028493,2]
[426050465,1782131519000,-500.0,0.00028493,2]
[426050468,1782131519000,-575.79,0.00028493,2]
[426050466,1782131519000,-500.0,0.00028493,2]
[426050469,1782131519000,-970.83,0.00028493,2]
[426050464,1782131519000,-500.0,0.00028493,2]
[426050470,1782131519000,-500.0,0.00028493,2]
[426050498,1782131519000,-755.16,0.00028493,2]
[426050492,1782131519000,-500.0,0.00028493,2]
[426050503,1782131519000,-500.51,0.00028493,2]
[426050532,1782131519000,-500.0,0.00028493,2]
[426050533,1782131519000,-511.5,0.00028493,2]
[426050539,1782131519000,-500.0,0.00028493,2]
[426050536,1782131519000,-500.0,0.00028493,2]
[426050530,1782131519000,-535.96448397,0.00028493,2]
[426050531,1782131519000,-500.0,0.00028493,2]
[426050535,1782131519000,-586.89,0.00028493,2]
[426050534,1782131519000,-500.0,0.00028493,2]
[426050541,1782131519000,-500.0,0.00028493,2]
[426050551,1782131519000,-607.67739911,0.00028493,2]
[426050540,1782131519000,-207.75,0.00028493,2]
[426050542,1782131519000,-1404.94,0.00028493,2]
[426050538,1782131519000,-614.75,0.00028493,2]
[426050545,1782131519000,-500.0,0.00028493,2]
[426050543,1782131519000,-500.0,0.00028493,2]
[426050548,1782131519000,-515.21,0.00028493,2]
[426050547,1782131519000,-688.82,0.00028493,2]
[426050546,1782131519000,-500.0,0.00028493,2]
[426050550,1782131519000,-168.8,0.00028493,2]
[426050549,1782131519000,-562.32,0.00028493,2]
[426050554,1782131519000,-500.0,0.00028493,2]
[426050552,1782131519000,-500.0,0.00028493,2]
[426050557,1782131519000,-500.0,0.00028493,2]
[426050555,1782131519000,-500.0,0.00028493,2]
[426050556,1782131519000,-500.0,0.00028493,2]
[426050553,1782131519000,-500.0,0.00028493,2]
[426050544,1782131519000,-1137.32,0.00028493,2]
[426050528,1782131519000,-371.45681283,0.00028493,2]
[426050501,1782131519000,-500.0,0.00028493,2]
[426050527,1782131519000,-500.0,0.00028493,2]
[426050529,1782131519000,-500.0,0.00028493,2]
[426050497,1782131519000,-500.0,0.00028493,2]
[426050508,1782131519000,-507.12362358,0.00028493,2]
[426050506,1782131519000,-500.0,0.00028493,2]
[426050504,1782131519000,-500.0,0.00028493,2]
[426050510,1782131519000,-661.35,0.00028493,2]
[426050514,1782131519000,-500.0,0.00028493,2]
[426050505,1782131519000,-557.46,0.00028493,2]
[426050513,1782131519000,-500.0,0.00028493,2]
[426050509,1782131519000,-500.0,0.00028493,2]
[426050507,1782131519000,-1180.24,0.00028493,2]
[426050511,1782131519000,-739.37,0.00028493,2]
[426050516,1782131519000,-500.0,0.00028493,2]
[426050512,1782131519000,-983.84,0.00028493,2]
[426050518,1782131519000,-500.0,0.00028493,2]
[426050515,1782131519000,-500.0,0.00028493,2]
[426050537,1782131519000,-500.0,0.00028493,2]
[426050525,1782131519000,-500.0,0.00028493,2]
[426050524,1782131519000,-714.12,0.00028493,2]
[426050519,1782131519000,-500.0,0.00028493,2]
[426050521,1782131519000,-500.0,0.00028493,2]
[426050522,1782131519000,-372.27,0.00028493,2]
[426050526,1782131519000,-500.0,0.00028493,2]
[426050517,1782131519000,-500.0,0.00028493,2]
[426050520,1782131519000,-500.0,0.00028493,2]
[426050558,1782131519000,-500.0,0.00028493,2]
[426050523,1782131519000,-500.0,0.00028493,2]
[426050595,1782131520000,-1040.83,0.00028493,2]
[426050596,1782131520000,-500.0,0.00028493,2]
[426050597,1782131520000,-500.0,0.00028493,2]
[426050592,1782131520000,-703.04,0.00028493,2]
[426050591,1782131520000,-531.43,0.00028493,2]
[426050589,1782131520000,-500.0,0.00028493,2]
[426050590,1782131520000,-500.0,0.00028493,2]
[426050594,1782131520000,-503.78651889,0.00028493,2]
[426050587,1782131520000,-1255.65,0.00028493,2]
[426050599,1782131520000,-500.0,0.00028493,2]
[426050593,1782131520000,-617.49,0.00028493,2]
[426050601,1782131520000,-458.44940866,0.00028493,2]
[426050613,1782131520000,-584.59,0.00028493,2]
[426050603,1782131520000,-500.0,0.00028493,2]
[426050600,1782131520000,-500.0,0.00028493,2]
[426050606,1782131520000,-856.58,0.00028493,2]
[426050607,1782131520000,-500.0,0.00028493,2]
[426050610,1782131520000,-500.0,0.00028493,2]
[426050611,1782131520000,-375.22,0.00028493,2]
[426050605,1782131520000,-500.0,0.00028493,2]
[426050609,1782131520000,-500.0,0.00028493,2]
[426050612,1782131520000,-546.12189491,0.00028493,2]
[426050608,1782131520000,-850.25,0.00028493,2]
[426050614,1782131520000,-500.0,0.00028493,2]
[426050598,1782131520000,-944.23,0.00028493,2]
[426050602,1782131520000,-500.0,0.00028493,2]
[426050588,1782131520000,-500.0,0.00028493,2]
[426050572,1782131520000,-501.54,0.00028493,2]
[426050585,1782131520000,-500.0,0.00028493,2]
[426050617,1782131520000,-500.0,0.00028493,2]
[426050563,1782131520000,-500.0,0.00028493,2]
[426050560,1782131520000,-807.35,0.00028493,2]
[426050562,1782131520000,-500.0,0.00028493,2]
[426050564,1782131520000,-500.0,0.00028493,2]
[426050559,1782131520000,-500.0,0.00028493,2]
[426050561,1782131520000,-721.3,0.00028493,2]
[426050566,1782131520000,-678.94,0.00028493,2]
[426050569,1782131520000,-500.0,0.00028493,2]
[426050565,1782131520000,-528.44,0.00028493,2]
[426050567,1782131520000,-500.0,0.00028493,2]
[426050568,1782131520000,-500.0,0.00028493,2]
[426050584,1782131520000,-500.0,0.00028493,2]
[426050570,1782131520000,-500.0,0.00028493,2]
[426050573,1782131520000,-593.04,0.00028493,2]
[426050571,1782131520000,-500.0,0.00028493,2]
[426050575,1782131520000,-548.72,0.00028493,2]
[426050576,1782131520000,-500.0,0.00028493,2]
[426050580,1782131520000,-500.0,0.00028493,2]
[426050579,1782131520000,-725.12,0.00028493,2]
[426050581,1782131520000,-500.0,0.00028493,2]
[426050577,1782131520000,-500.0,0.00028493,2]
[426050578,1782131520000,-691.46,0.00028493,2]
[426050583,1782131520000,-500.0,0.00028493,2]
[426050582,1782131520000,-500.0,0.00028493,2]
[426050586,1782131520000,-500.0,0.00028493,2]
[426050574,1782131520000,-1181.38,0.00028493,2]
[426050615,1782131520000,-608.59,0.00028493,2]
[426050623,1782131520000,-500.0,0.00028493,2]
[426050619,1782131520000,-500.0,0.00028493,2]
[426050651,1782131520000,-318.05269933,0.00028493,2]
[426050650,1782131520000,-500.0,0.00028493,2]
[426050652,1782131520000,-500.0,0.00028493,2]
[426050649,1782131520000,-528.93799832,0.00028493,2]
[426050653,1782131520000,-500.0,0.00028493,2]
[426050657,1782131520000,-790.07,0.00028493,2]
[426050656,1782131520000,-666.78,0.00028493,2]
[426050654,1782131520000,-500.0,0.00028493,2]
[426050655,1782131520000,-500.0,0.00028493,2]
[426050659,1782131520000,-500.0,0.00028493,2]
[426050660,1782131520000,-504.09,0.00028493,2]
[426050662,1782131520000,-790.49,0.00028493,2]
[426050658,1782131520000,-500.0,0.00028493,2]
[426050668,1782131520000,-500.0,0.00028493,2]
[426050670,1782131520000,-500.0,0.00028493,2]
[426050665,1782131520000,-500.0,0.00028493,2]
[426050663,1782131520000,-510.33,0.00028493,2]
[426050667,1782131520000,-500.0,0.00028493,2]
[426050666,1782131520000,-853.2,0.00028493,2]
[426050669,1782131520000,-564.32,0.00028493,2]
[426050671,1782131520000,-500.0,0.00028493,2]
[426050672,1782131520000,-500.0,0.00028493,2]
[426050673,1782131520000,-900.89,0.00028493,2]
[426050675,1782131520000,-500.0,0.00028493,2]
[426050618,1782131520000,-500.0,0.00028493,2]
[426050674,1782131520000,-500.0,0.00028493,2]
[426050664,1782131520000,-500.0,0.00028493,2]
[426050647,1782131520000,-500.0,0.00028493,2]
[426050661,1782131520000,-834.64,0.00028493,2]
[426050643,1782131520000,-554.01,0.00028493,2]
[426050616,1782131520000,-500.0,0.00028493,2]
[426050642,1782131520000,-500.0,0.00028493,2]
[426050621,1782131520000,-523.74,0.00028493,2]
[426050620,1782131520000,-500.0,0.00028493,2]
[426050622,1782131520000,-500.0,0.00028493,2]
[426050628,1782131520000,-500.0,0.00028493,2]
[426050624,1782131520000,-235.13804447,0.00028493,2]
[426050634,1782131520000,-500.0,0.00028493,2]
[426050630,1782131520000,-509.06132689,0.00028493,2]
[426050631,1782131520000,-936.99,0.00028493,2]
[426050629,1782131520000,-1501.08,0.00028493,2]
[426050633,1782131520000,-500.0,0.00028493,2]
[426050626,1782131520000,-500.0,0.00028493,2]
[426050627,1782131520000,-500.0,0.00028493,2]
[426050641,1782131520000,-540.55,0.00028493,2]
[426050632,1782131520000,-500.0,0.00028493,2]
[426050636,1782131520000,-1046.3,0.00028493,2]
[426050635,1782131520000,-500.0,0.00028493,2]
[426050648,1782131520000,-500.0,0.00028493,2]
[426050639,1782131520000,-670.91,0.00028493,2]
[426050638,1782131520000,-500.0,0.00028493,2]
[426050637,1782131520000,-786.59,0.00028493,2]
[426050640,1782131520000,-500.0,0.00028493,2]
[426050646,1782131520000,-718.0,0.00028493,2]
[426050625,1782131520000,-500.0,0.00028493,2]
[426050645,1782131520000,-500.0,0.00028493,2]
[426050644,1782131520000,-500.0,0.00028493,2]
[426050713,1782131521000,-689.12,0.00028493,2]
[426050717,1782131521000,-168.4219011,0.00028493,2]
[426050719,1782131521000,-500.0,0.00028493,2]
[426050716,1782131521000,-500.0,0.00028493,2]
[426050712,1782131521000,-500.0,0.00028493,2]
[426050715,1782131521000,-500.0,0.00028493,2]
[426050707,1782131521000,-500.0,0.00028493,2]
[426050710,1782131521000,-500.0,0.00028493,2]
[426050709,1782131521000,-740.41,0.00028493,2]
[426050711,1782131521000,-566.57710691,0.00028493,2]
[426050720,1782131521000,-500.0,0.00028493,2]
[426050714,1782131521000,-3364.63,0.00028493,2]
[426050722,1782131521000,-224.48,0.00028493,2]
[426050734,1782131521000,-500.0,0.00028493,2]
[426050723,1782131521000,-500.0,0.00028493,2]
[426050729,1782131521000,-500.0,0.00028493,2]
[426050730,1782131521000,-500.0,0.00028493,2]
[426050732,1782131521000,-500.0,0.00028493,2]
[426050733,1782131521000,-500.0,0.00028493,2]
[426050724,1782131521000,-500.0,0.00028493,2]
[426050731,1782131521000,-614.64,0.00028493,2]
[426050728,1782131521000,-4029.46,0.00028493,2]
[426050725,1782131521000,-500.0,0.00028493,2]
[426050727,1782131521000,-500.0,0.00028493,2]
[426050721,1782131521000,-879.63,0.00028493,2]
[426050745,1782131521000,-500.0,0.00028493,2]
[426050718,1782131521000,-508.64,0.00028493,2]
[426050726,1782131521000,-500.0,0.00028493,2]
[426050708,1782131521000,-500.0,0.00028493,2]
[426050676,1782131521000,-500.0,0.00028493,2]
[426050702,1782131521000,-1069.93,0.00028493,2]
[426050744,1782131521000,-500.0,0.00028493,2]
[426050678,1782131521000,-500.0,0.00028493,2]
[426050679,1782131521000,-500.0,0.00028493,2]
[426050680,1782131521000,-500.0,0.00028493,2]
[426050681,1782131521000,-500.0,0.00028493,2]
[426050677,1782131521000,-500.0,0.00028493,2]
[426050683,1782131521000,-636.73,0.00028493,2]
[426050693,1782131521000,-586.43207465,0.00028493,2]
[426050695,1782131521000,-500.0,0.00028493,2]
[426050684,1782131521000,-715.39,0.00028493,2]
[426050682,1782131521000,-500.0,0.00028493,2]
[426050685,1782131521000,-500.0,0.00028493,2]
[426050694,1782131521000,-500.0,0.00028493,2]
[426050686,1782131521000,-702.96,0.00028493,2]
[426050687,1782131521000,-992.54,0.00028493,2]
[426050688,1782131521000,-500.0,0.00028493,2]
[426050692,1782131521000,-947.18,0.00028493,2]
[426050691,1782131521000,-500.0,0.00028493,2]
[426050689,1782131521000,-500.0,0.00028493,2]
[426050690,1782131521000,-617.25,0.00028493,2]
[426050696,1782131521000,-524.23,0.00028493,2]
[426050697,1782131521000,-500.0,0.00028493,2]
[426050698,1782131521000,-500.0,0.00028493,2]
[426050706,1782131521000,-521.74,0.00028493,2]
[426050700,1782131521000,-858.12,0.00028493,2]
[426050704,1782131521000,-577.94,0.00028493,2]
[426050705,1782131521000,-788.02,0.00028493,2]
[426050701,1782131521000,-500.0,0.00028493,2]
[426050699,1782131521000,-1250.12,0.00028493,2]
[426050703,1782131521000,-500.0,0.00028493,2]
[426050735,1782131521000,-563.25903341,0.00028493,2]
[426050750,1782131521000,-500.0,0.00028493,2]
[426050743,1782131521000,-635.95,0.00028493,2]
[426050781,1782131521000,-510.38,0.00028493,2]
[426050773,1782131521000,-600.74,0.00028493,2]
[426050775,1782131521000,-3639.77,0.00028493,2]
[426050783,1782131521000,-700.32,0.00028493,2]
[426050779,1782131521000,-500.0,0.00028493,2]
[426050780,1782131521000,-636.07,0.00028493,2]
[426050774,1782131521000,-491.97783583,0.00028493,2]
[426050776,1782131521000,-500.0,0.00028493,2]
[426050777,1782131521000,-524.92,0.00028493,2]
[426050782,1782131521000,-500.0,0.00028493,2]
[426050778,1782131521000,-1050.73,0.00028493,2]
[426050784,1782131521000,-500.0,0.00028493,2]
[426050796,1782131521000,-1014.22,0.00028493,2]
[426050772,1782131521000,-500.0,0.00028493,2]
[426050786,1782131521000,-500.0,0.00028493,2]